bitfinex-derivatives/quotes_BTCF0:USTF0_20250811
["timestamp","ask_amount","ask_price","bid_price","bid_amount"]
[1754949362518,0.395,118600.0,118590.0,1.36863529]
[1754949364207,0.41017,118600.0,118590.0,1.37493281]
[1754949364404,0.44355,118600.0,118590.0,0.98390022]
[1754949366204,0.36088,118620.0,118610.0,0.0843085]
[1754949366404,0.3608,118630.0,118620.0,0.2528979]
[1754949366705,0.06837524,118640.0,118630.0,0.0842943]
[1754949366912,0.10165524,118640.0,118630.0,0.50253689]
[1754949368321,0.10165524,118640.0,118630.0,0.1114043]
[1754949368516,0.10175524,118640.0,118630.0,0.50263689]
[1754949368713,4e-08,118640.0,118630.0,0.56938406]
[1754949368918,4e-08,118640.0,118630.0,0.93018406]
[1754949370118,4e-08,118640.0,118630.0,0.93518406]
[1754949375612,0.41027,118680.0,118670.0,0.0842659]
[1754949375812,0.08275,118680.0,118670.0,1.37715566]
[1754949376518,0.08275,118680.0,118670.0,0.9191759]
[1754949376723,0.08385,118680.0,118670.0,1.37725566]
[1754949377025,0.0012,118680.0,118670.0,1.73805566]
[1754949377415,0.0032,118680.0,118670.0,1.73805566]
[1754949377816,0.0032,118680.0,118670.0,1.2800759]
[1754949378020,0.0032,118680.0,118670.0,1.73805566]
[1754949378917,0.0022,118680.0,118670.0,1.73905566]
[1754949379122,1e-07,118680.0,118670.0,1.73895566]
[1754949379324,1e-07,118680.0,118670.0,1.74428646]
[1754949379524,0.05147,118700.0,118690.0,0.0842518]
[1754949379724,0.0845,118700.0,118690.0,1.37695156]
[1754949380019,0.0845,118700.0,118690.0,0.9189718]
[1754949380325,0.4454,118700.0,118690.0,0.9190718]
[1754949381415,1.10619371,118700.0,118690.0,0.0001]
[1754949381720,0.0842518,118690.0,118680.0,0.9759869]
[1754949381925,0.5295518,118690.0,118680.0,0.8916128]
[1754949382125,0.5795518,118690.0,118680.0,0.8916128]
[1754949383024,0.0842589,118680.0,118670.0,0.8916243]
[1754949383220,0.98753866,118680.0,118670.0,0.8917243]
[1754949383812,0.98753866,118680.0,118670.0,0.0843643]
[1754949383813,1.20606666,118680.0,118670.0,0.0843643]
[1754949384925,1.20606666,118680.0,118670.0,0.0853643]
[1754949385619,1.20606666,118680.0,118670.0,0.0843643]
[1754949385822,1.20606666,118680.0,118670.0,0.0853643]
[1754949387928,0.7480869,118680.0,118670.0,0.0853643]
[1754949388130,1.20606666,118680.0,118670.0,0.0853643]
[1754949391637,1.03753866,118680.0,118670.0,0.0853643]
[1754949397437,0.5795589,118680.0,118670.0,0.0853643]
[1754949397631,0.60325565,118680.0,118670.0,0.0853643]
[1754949398730,0.74345565,118680.0,118670.0,0.0853643]
[1754949399529,0.69345565,118680.0,118670.0,0.1126643]
[1754949400432,0.69345565,118680.0,118670.0,0.1125643]
[1754949400735,0.69345565,118680.0,118670.0,0.0853643]
[1754949401135,0.6697589,118680.0,118670.0,0.0853643]
[1754949401939,1.06038767,118680.0,118670.0,0.0853643]
[1754949403937,0.6697589,118680.0,118670.0,0.0853643]
[1754949405145,1.4765189,118680.0,118670.0,0.0853643]
[1754949405744,0.6697589,118680.0,118670.0,0.0853643]
[1754949406244,1.4763989,118680.0,118670.0,0.0853643]
[1754949408241,1.4763989,118680.0,118670.0,0.0503643]
[1754949408441,0.3371127,118660.0,118640.0,0.3015319]
[1754949408647,0.0842873,118640.0,118630.0,0.1685868]
[1754949408945,0.91788607,118640.0,118630.0,0.0842934]
[1754949409139,0.0842944,118630.0,118620.0,1.19834368]
[1754949409445,0.5272644,118630.0,118620.0,1.19834368]
[1754949409645,0.5273644,118630.0,118620.0,1.19844368]
[1754949410236,0.5273644,118630.0,118620.0,1.11414268]
[1754949410437,0.5273644,118630.0,118620.0,0.98105168]
[1754949410636,0.91799317,118630.0,118620.0,0.0844015]
[1754949410846,0.91799317,118630.0,118620.0,0.0854015]
[1754949411435,0.93648396,118630.0,118620.0,0.0001]
[1754949412247,1.00547815,118630.0,118620.0,0.0001]
[1754949412444,0.61484938,118630.0,118620.0,0.0001]
[1754949412748,1.00547815,118630.0,118620.0,0.0021]
[1754949413140,1.00547815,118630.0,118620.0,0.0001]
[1754949413948,1.00547815,118630.0,118620.0,0.0844015]
[1754949414149,1.00547815,118630.0,118620.0,0.0001]
[1754949415042,1.00547815,118630.0,118620.0,0.0844015]
[1754949416139,0.61484938,118630.0,118620.0,0.0844015]
[1754949416344,1.00547815,118630.0,118620.0,0.0844015]
[1754949416651,1.00547815,118630.0,118620.0,0.0001]
[1754949416845,0.61484938,118630.0,118620.0,0.0844015]
[1754949417153,1.00547815,118630.0,118620.0,0.0844015]
[1754949417652,1.02818815,118630.0,118620.0,0.0844015]
[1754949418345,1.19678815,118630.0,118620.0,0.0001]
[1754949420951,1.02818815,118630.0,118620.0,0.0844014]
[1754949421153,1.02818815,118630.0,118620.0,0.1843614]
[1754949422349,1.02818815,118630.0,118620.0,0.1598814]
[1754949422545,1.02818815,118630.0,118620.0,0.1110914]
[1754949422746,1.02818815,118630.0,118620.0,0.0844014]
[1754949423855,1.16838815,118630.0,118620.0,0.0844014]
[1754949424247,0.56636938,118630.0,118620.0,0.1110914]
[1754949424557,0.56636938,118630.0,118620.0,0.2070314]
[1754949424558,0.65367938,118630.0,118620.0,0.2070314]
[1754949424854,1.04430815,118630.0,118620.0,0.2070314]
[1754949425246,0.65367938,118630.0,118620.0,0.2070314]
[1754949425646,0.56938498,118630.0,118620.0,0.59766017]
[1754949425948,0.56938498,118630.0,118620.0,0.2070314]
[1754949426148,0.65367928,118630.0,118620.0,0.2070314]
[1754949426348,0.56938498,118630.0,118620.0,0.2080314]
[1754949426552,0.56938498,118630.0,118620.0,0.2100314]
[1754949426853,0.65367928,118630.0,118620.0,0.2100314]
[1754949427455,0.37939079,118630.0,118620.0,0.65066017]
[1754949427759,0.37929079,118630.0,118620.0,0.65061508]
[1754949428366,0.01849079,118630.0,118620.0,1.01141508]
[1754949434654,0.01849079,118630.0,118620.0,0.96141508]
[1754949435057,0.51876263,118660.0,118640.0,0.3371425]
[1754949435262,0.56759263,118660.0,118650.0,1.0125897]
[1754949435649,0.04118067,118660.0,118650.0,1.0125897]
[1754949435865,0.01906067,118660.0,118650.0,1.40321847]
[1754949436556,0.01906067,118660.0,118650.0,1.76401847]
[1754949436858,0.3608,118680.0,118670.0,0.0842654]
[1754949437055,0.39568445,118690.0,118680.0,0.0842579]
[1754949437256,0.47993485,118690.0,118680.0,0.1336179]
[1754949437457,0.52876485,118690.0,118680.0,0.2068879]
[1754949437762,0.58516485,118690.0,118680.0,0.2068879]
[1754949438158,0.58516165,118690.0,118680.0,0.2068879]
[1754949438356,0.50091445,118690.0,118680.0,0.2068879]
[1754949438665,0.57009197,118690.0,118680.0,0.2068879]
[1754949439161,0.3628,118690.0,118680.0,0.60349344]
[1754949439362,0.002,118690.0,118680.0,0.60349344]
[1754949442467,0.002,118690.0,118680.0,0.77200544]
[1754949442672,0.002,118690.0,118680.0,1.13280544]
[1754949443478,0.10923,118690.0,118680.0,0.21286467]
[1754949443774,0.96157687,118690.0,118680.0,0.9707579]
[1754949443969,0.96157687,118690.0,118680.0,0.83181]
[1754949444272,0.96157687,118690.0,118680.0,0.80512]
[1754949444571,0.0842542,118680.0,118660.0,1.08222996]
[1754949444878,1.00420347,118680.0,118670.0,0.8893413]
[1754949445371,1.07858347,118680.0,118670.0,0.8893413]
[1754949445873,0.6879547,118680.0,118670.0,1.0113313]
[1754949446066,0.7374747,118680.0,118670.0,1.0113313]
[1754949446869,0.7374747,118680.0,118670.0,0.2062513]
[1754949447071,0.7374747,118680.0,118670.0,0.2062521]
[1754949447277,0.0842621,118670.0,118660.0,1.21994889]
[1754949447575,0.2081621,118670.0,118660.0,1.21994889]
[1754949448572,0.2081621,118670.0,118660.0,1.22094889]
[1754949449272,0.5689621,118670.0,118660.0,1.02830349]
[1754949449574,0.5690621,118670.0,118660.0,0.8912459]
[1754949450074,1.02677648,118670.0,118660.0,0.80698]
[1754949450371,1.02677648,118670.0,118660.0,0.8912492]
[1754949450572,1.02677648,118670.0,118660.0,0.8902492]
[1754949450972,1.02677648,118670.0,118660.0,0.0853692]
[1754949451172,1.02677648,118670.0,118660.0,0.8900892]
[1754949451673,1.02677648,118670.0,118660.0,0.8890892]
[1754949452274,1.02677648,118670.0,118660.0,0.0843692]
[1754949452470,0.5690621,118670.0,118660.0,0.8890092]
[1754949452668,1.02677648,118670.0,118660.0,0.8890092]
[1754949453359,0.5690621,118670.0,118660.0,0.8890092]
[1754949454172,0.5690621,118670.0,118660.0,0.9370992]
[1754949454375,0.5690621,118670.0,118660.0,0.1833492]
[1754949454564,0.5690621,118670.0,118660.0,0.9879892]
[1754949455474,0.5690621,118670.0,118660.0,0.9879092]
[1754949455674,0.5690621,118670.0,118660.0,0.1833492]
[1754949455877,0.5690621,118670.0,118660.0,0.9878292]
[1754949457173,0.5690621,118670.0,118660.0,1.0108392]
[1754949460575,0.5690621,118670.0,118660.0,1.0106392]
[1754949460776,0.5690621,118670.0,118660.0,0.8886492]
[1754949461169,0.5523921,118670.0,118660.0,1.0106392]
[1754949461369,0.5690621,118670.0,118660.0,0.2063592]
[1754949461569,0.5690621,118670.0,118660.0,1.0105992]
[1754949465885,0.0001,118670.0,118660.0,1.46831358]
[1754949466467,0.0001,118670.0,118660.0,1.0105992]
[1754949466681,0.0001,118670.0,118660.0,1.40112233]
[1754949466979,0.0001,118670.0,118660.0,1.40212233]
[1754949467278,0.0001,118670.0,118660.0,1.40312233]
[1754949468472,0.0001,118670.0,118660.0,1.76392233]
[1754949469068,0.0001,118670.0,118660.0,1.3733992]
[1754949469279,0.0001,118670.0,118660.0,1.76392233]
[1754949470478,0.0001,118670.0,118660.0,1.93246633]
[1754949472478,0.3608,118700.0,118690.0,0.0842481]
[1754949472676,0.024,118700.0,118690.0,1.65092073]
[1754949472876,0.06827,118700.0,118690.0,1.65092073]
[1754949473391,0.06827,118700.0,118690.0,1.2603976]
[1754949473685,0.06837,118700.0,118690.0,1.2604976]
[1754949474080,0.07037,118700.0,118690.0,1.2604976]
[1754949475179,0.0021,118700.0,118690.0,1.2604976]
[1754949475384,0.0041,118700.0,118690.0,1.65102073]
[1754949477281,0.0041,118700.0,118690.0,2.01182073]
[1754949479481,0.01898157,118710.0,118700.0,0.0842398]
[1754949479680,0.01898157,118710.0,118700.0,0.52390293]
[1754949479887,0.01898157,118710.0,118700.0,0.59453293]
[1754949480683,0.02098157,118710.0,118700.0,0.59453293]
[1754949480894,0.02108157,118710.0,118700.0,0.59463293]
[1754949481789,0.02208157,118710.0,118700.0,0.59463293]
[1754949482391,0.02208157,118710.0,118700.0,0.2041098]
[1754949482590,0.02208157,118710.0,118700.0,0.59463293]
[1754949482992,0.02208157,118710.0,118700.0,0.95543293]
[1754949484587,0.0031,118710.0,118700.0,0.95543293]
[1754949487593,0.0031,118710.0,118700.0,0.5649098]
[1754949487793,0.0031,118710.0,118700.0,0.95543293]
[1754949491596,0.0031,118710.0,118700.0,0.5649098]
[1754949491790,0.0031,118710.0,118700.0,0.95543293]
[1754949497301,0.0021,118710.0,118700.0,0.95643293]
[1754949498303,0.0001,118710.0,118700.0,0.95643293]
[1754949498502,0.0001,118710.0,118700.0,0.95743293]
[1754949500398,0.3075817,118740.0,118730.0,0.084216]
[1754949500591,0.3724117,118740.0,118730.0,1.006316]
[1754949500897,0.2881935,118740.0,118730.0,1.006316]
[1754949501493,0.2881935,118740.0,118730.0,1.007316]
[1754949501690,0.2882935,118740.0,118730.0,1.01479721]
[1754949501899,0.11986,118740.0,118730.0,0.98108721]
[1754949502107,0.2040693,118740.0,118730.0,1.01479721]
[1754949502309,0.2050693,118740.0,118730.0,1.01379721]
[1754949502709,0.2060693,118740.0,118730.0,1.01279721]
[1754949503002,0.22590261,118740.0,118730.0,1.01279721]
[1754949503205,0.27369261,118740.0,118730.0,1.01279721]
[1754949503600,0.12186,118740.0,118730.0,1.40332034]
[1754949504004,0.12186,118740.0,118730.0,1.01279721]
[1754949504706,0.01257,118740.0,118730.0,1.40332034]
[1754949504908,0.02478,118740.0,118730.0,1.76412034]
[1754949505611,0.0021,118740.0,118730.0,1.76412034]
[1754949507204,0.0011,118740.0,118730.0,1.76512034]
[1754949508408,0.0001,118740.0,118730.0,1.76612034]
[1754949509707,0.0001,118740.0,118730.0,1.37559721]
[1754949509907,0.0001,118740.0,118730.0,1.76612034]
[1754949514415,0.1069893,118740.0,118730.0,1.76612034]
[1754949514615,0.1392393,118740.0,118730.0,1.76612034]
[1754949515412,0.05503,118740.0,118730.0,1.76612034]
[1754949515613,0.1069893,118740.0,118730.0,1.37559721]
[1754949515814,0.1174593,118740.0,118730.0,1.37559721]
[1754949516014,0.1497093,118740.0,118730.0,1.37559721]
[1754949516319,0.1885293,118740.0,118730.0,1.76612034]
[1754949516521,0.2040693,118740.0,118730.0,1.76612034]
[1754949517819,0.2040693,118740.0,118730.0,1.37559721]
[1754949518022,0.2040693,118740.0,118730.0,1.76612034]
[1754949518321,0.2040693,118740.0,118730.0,1.37559721]
[1754949518909,0.2040693,118740.0,118730.0,1.01479721]
[1754949519110,0.95539243,118740.0,118730.0,1.01479721]
[1754949519311,0.95539243,118740.0,118730.0,0.92058771]
[1754949519521,0.95539243,118740.0,118730.0,0.90984771]
[1754949520419,0.95539243,118740.0,118730.0,0.9034665]
[1754949520714,1.14285851,118740.0,118730.0,0.80286]
[1754949521710,1.14285851,118740.0,118730.0,0.0021]
[1754949522819,1.14285851,118740.0,118730.0,0.1016668]
[1754949523022,1.14285851,118740.0,118730.0,0.1330768]
[1754949523222,0.97441851,118740.0,118730.0,0.1481768]
[1754949524322,0.97441851,118740.0,118730.0,0.1006668]
[1754949524512,0.97441851,118740.0,118730.0,0.2044968]
[1754949524716,0.49968608,118740.0,118730.0,0.2044968]
[1754949524919,0.11986,118740.0,118730.0,0.2044968]
[1754949526214,0.0001,118740.0,118730.0,0.2044968]
[1754949526415,0.0001,118740.0,118730.0,0.95881993]
[1754949527316,0.0001,118740.0,118730.0,0.5682968]
[1754949527712,0.4449958,118760.0,118730.0,0.95881993]
[1754949527918,0.01903964,118770.0,118760.0,0.0841954]
[1754949528124,0.04171964,118770.0,118760.0,1.0048554]
[1754949528320,0.12325964,118770.0,118760.0,1.0048554]
[1754949528515,0.13879964,118770.0,118760.0,1.0048554]
[1754949529119,0.58378754,118770.0,118760.0,1.0048554]
[1754949529323,0.22308754,118770.0,118760.0,1.0049554]
[1754949529822,0.58388754,118770.0,118760.0,1.0049554]
[1754949530026,0.58388754,118770.0,118760.0,1.0069554]
[1754949530425,0.58388754,118770.0,118760.0,1.0079554]
[1754949530626,0.58388754,118770.0,118760.0,1.01475284]
[1754949532228,0.97441067,118770.0,118760.0,0.83651]
[1754949532525,0.97587645,118770.0,118760.0,0.80358]
[1754949532725,1.14427645,118770.0,118760.0,0.8033]
[1754949533230,1.14427645,118770.0,118740.0,0.01730197]
[1754949533231,0.0842025,118750.0,118740.0,0.01730197]
[1754949533524,0.0842025,118750.0,118740.0,0.81746197]
[1754949533525,0.95715563,118750.0,118740.0,0.81746197]
[1754949533724,0.0842167,118730.0,118720.0,0.79327226]
[1754949533930,0.2058467,118730.0,118720.0,1.64204226]
[1754949534319,0.59636983,118730.0,118720.0,1.64204226]
[1754949534519,0.59646983,118730.0,118720.0,1.64214226]
[1754949536415,0.2059467,118730.0,118720.0,1.64514226]
[1754949536615,0.59646983,118730.0,118720.0,1.64514226]
[1754949536832,0.59646983,118730.0,118720.0,1.28234226]
[1754949537024,0.59646983,118730.0,118720.0,1.19811916]
[1754949537224,0.59646983,118730.0,118720.0,1.19133222]
[1754949538127,0.59646983,118730.0,118720.0,1.15277222]
[1754949538322,0.59646983,118730.0,118720.0,1.16773222]
[1754949538530,0.59646983,118730.0,118720.0,1.19133222]
[1754949542531,0.59646983,118730.0,118720.0,1.17614222]
[1754949543929,0.59646983,118730.0,118720.0,1.17582222]
[1754949544331,0.2059467,118730.0,118720.0,0.37598222]
[1754949544531,0.59646983,118730.0,118720.0,1.17582222]
[1754949545129,0.2059467,118730.0,118720.0,1.17582222]
[1754949545429,0.59646983,118730.0,118720.0,1.17578222]
[1754949546025,0.55586983,118730.0,118720.0,1.15218222]
[1754949546329,0.55586983,118730.0,118720.0,1.14179222]
[1754949546539,0.0842309,118710.0,118700.0,0.2163621]
[1754949546834,0.55578403,118710.0,118700.0,1.0495021]
[1754949547422,0.55578403,118710.0,118700.0,1.05628313]
[1754949548634,0.1652609,118710.0,118700.0,1.05628313]
[1754949548834,0.55588403,118710.0,118700.0,1.05638313]
[1754949549530,0.55688403,118710.0,118700.0,1.05638313]
[1754949550534,0.55688403,118710.0,118700.0,0.965246]
[1754949551236,0.55688403,118710.0,118700.0,0.86605]
[1754949551438,0.91768403,118710.0,118700.0,0.965248]
[1754949551737,0.91768403,118710.0,118700.0,0.88101]
[1754949551940,0.91768403,118710.0,118700.0,0.86605]
[1754949552632,0.91768403,118710.0,118700.0,0.06645]
[1754949552838,0.91768403,118710.0,118700.0,0.83255]
[1754949555942,0.91768403,118710.0,118700.0,0.9167879]
[1754949556341,0.91768403,118710.0,118700.0,0.9317479]
[1754949556540,0.91768403,118710.0,118700.0,0.9651679]
[1754949558833,1.05758403,118710.0,118700.0,0.9651679]
[1754949564749,0.6670609,118710.0,118700.0,0.9651679]
[1754949565048,1.05758403,118710.0,118700.0,0.9651679]
[1754949567551,1.05758403,118710.0,118700.0,0.1656479]
[1754949567851,1.05758403,118710.0,118700.0,0.9645679]
[1754949572453,1.05758403,118710.0,118700.0,0.1656479]
[1754949572648,1.05758403,118710.0,118700.0,0.9643279]
[1754949573454,0.91768403,118710.0,118700.0,0.9643279]
[1754949575350,0.0011,118710.0,118700.0,0.1656479]
[1754949575655,0.37953957,118740.0,118730.0,0.0842168]
[1754949575852,0.75132313,118760.0,118750.0,0.0842027]
[1754949576047,0.38130542,118770.0,118750.0,1.1036235]
[1754949576243,0.85601735,118770.0,118760.0,0.1142256]
[1754949576455,0.85601735,118770.0,118760.0,0.1366956]
[1754949576850,0.00146578,118770.0,118760.0,0.1366956]
[1754949577055,0.00156578,118770.0,118760.0,0.1367956]
[1754949577255,0.5291653,118780.0,118760.0,0.5244822]
[1754949577556,0.4449817,118780.0,118770.0,0.9110585]
[1754949577751,0.6133393,118790.0,118780.0,0.0841814]
[1754949577948,0.5291584,118790.0,118780.0,0.1351214]
[1754949578154,0.1683584,118790.0,118780.0,0.1351214]
[1754949578463,1.00383873,118800.0,118790.0,0.0841743]
[1754949578657,1.00383873,118800.0,118790.0,0.9334743]
[1754949578658,0.6134156,118800.0,118790.0,0.9334743]
[1754949578846,0.1684413,118800.0,118790.0,0.9334743]
[1754949579556,0.5312413,118800.0,118790.0,0.9334743]
[1754949579755,0.92176443,118800.0,118790.0,0.9334743]
[1754949580159,1.00563443,118800.0,118790.0,0.8493]
[1754949580747,1.071939,118800.0,118790.0,0.8493]
[1754949581052,1.07340442,118800.0,118790.0,0.82651]
[1754949581251,1.07340442,118800.0,118790.0,0.79804]
[1754949582552,1.07164592,118800.0,118790.0,0.79804]
[1754949582859,1.07311134,118800.0,118790.0,0.79804]
[1754949583158,1.07311134,118800.0,118790.0,0.82651]
[1754949583955,1.07311134,118800.0,118790.0,0.79804]
[1754949584154,1.52993904,118800.0,118790.0,0.79804]
[1754949584354,1.07311134,118800.0,118790.0,0.79804]
[1754949585252,0.0841742,118790.0,118780.0,0.82637]
[1754949585449,0.9836719,118790.0,118780.0,0.82637]
[1754949585652,0.9836719,118790.0,118780.0,0.84884]
[1754949586352,0.9846719,118790.0,118780.0,0.84884]
[1754949586752,0.9846719,118790.0,118780.0,0.84878596]
[1754949587660,0.9846719,118790.0,118780.0,0.93296726]
[1754949588457,0.9856719,118790.0,118780.0,0.93296726]
[1754949588962,0.9856719,118790.0,118780.0,0.84878596]
[1754949591861,0.5288442,118790.0,118780.0,0.84878596]
[1754949592061,0.9856719,118790.0,118780.0,0.84878596]
[1754949594673,0.9856719,118790.0,118780.0,0.93296746]
[1754949596378,0.5288442,118790.0,118780.0,0.93296746]
[1754949596578,0.9360019,118790.0,118780.0,0.93296746]
[1754949596773,0.9854519,118790.0,118780.0,0.93296746]
[1754949600477,0.0861744,118790.0,118780.0,0.93296746]
[1754949600881,0.002,118790.0,118780.0,1.29376746]
[1754949602080,0.0861719,118790.0,118780.0,1.29376746]
[1754949602890,0.002,118790.0,118780.0,1.29376746]
[1754949603581,0.50811306,118790.0,118780.0,1.29376746]
[1754949603885,0.91836306,118790.0,118780.0,0.90937746]
[1754949604077,0.91836306,118790.0,118780.0,0.93079746]
[1754949604574,0.91836306,118790.0,118780.0,0.88090746]
[1754949604978,0.91836306,118790.0,118780.0,0.11269746]
[1754949605879,0.91736306,118790.0,118780.0,4.596e-05]
[1754949606089,0.95649306,118790.0,118780.0,0.79668596]
[1754949606581,0.95649306,118790.0,118780.0,4.596e-05]
[1754949606785,0.0841792,118780.0,118770.0,0.7966]
[1754949607087,0.0841934,118760.0,118750.0,0.3887525]
[1754949607286,0.5095734,118760.0,118750.0,1.2228425]
[1754949607684,0.95651456,118760.0,118750.0,1.2228425]
[1754949607882,0.95661456,118760.0,118750.0,1.2229425]
[1754949608082,0.5668134,118760.0,118750.0,1.0310557]
[1754949608386,1.34641572,118760.0,118750.0,0.9468573]
[1754949608583,1.34641572,118760.0,118750.0,0.9478573]
[1754949608787,1.02405219,118760.0,118750.0,0.9488573]
[1754949609885,1.02405219,118760.0,118750.0,0.9723473]
[1754949611486,0.5668134,118760.0,118750.0,0.9723473]
[1754949611687,1.02405219,118760.0,118750.0,0.9723473]
[1754949614392,0.5668134,118760.0,118750.0,0.9723473]
[1754949614596,1.02405219,118760.0,118750.0,0.9723473]
[1754949617394,0.4450936,118760.0,118750.0,0.9723473]
[1754949617591,0.3609,118760.0,118750.0,0.9723473]
[1754949617894,0.0001,118760.0,118750.0,1.3331473]
[1754949618292,0.0842936,118760.0,118750.0,0.9723473]
[1754949618494,0.0842936,118760.0,118750.0,1.3331473]
[1754949618689,0.0842936,118760.0,118750.0,0.9723473]
[1754949623088,0.3608,118790.0,118770.0,0.0841865]
[1754949623293,0.02256,118790.0,118780.0,1.1627366]
[1754949623598,0.02256,118790.0,118780.0,1.5235366]
[1754949624001,0.02256,118790.0,118780.0,1.53054462]
[1754949624398,0.001,118790.0,118780.0,1.53054462]
[1754949624706,0.0031,118790.0,118780.0,1.53064462]
[1754949624898,0.0021,118790.0,118780.0,1.53064462]
[1754949625098,0.0041,118790.0,118780.0,1.53064462]
[1754949625702,0.02666,118790.0,118780.0,1.53064462]
[1754949626204,0.0041,118790.0,118780.0,1.53064462]
[1754949626593,0.0001,118790.0,118780.0,1.53064462]
[1754949626806,0.0001,118790.0,118780.0,1.53364462]
[1754949627007,0.02266,118790.0,118780.0,1.53364462]
[1754949629009,0.0001,118790.0,118780.0,1.92345605]
[1754949629905,0.00146542,118800.0,118790.0,0.0841714]
[1754949630108,0.00146542,118800.0,118790.0,0.4748214]
[1754949631402,0.08563192,118800.0,118790.0,0.4758214]
[1754949631606,0.10829192,118800.0,118790.0,0.4759214]
[1754949631811,0.13489192,118800.0,118790.0,0.4611814]
[1754949632006,0.20298192,118800.0,118790.0,1.2715214]
[1754949633410,1.0204972,118800.0,118790.0,0.0852749]
[1754949633711,0.56378192,118800.0,118790.0,0.8959049]
[1754949633911,1.0204972,118800.0,118790.0,0.8959049]
[1754949634104,0.6596972,118800.0,118790.0,0.895905]
[1754949634307,0.20298192,118800.0,118790.0,0.910645]
[1754949634501,1.0204972,118800.0,118790.0,0.92771675]
[1754949635111,0.56378192,118800.0,118790.0,0.92771675]
[1754949635614,0.20298192,118800.0,118790.0,0.92771675]
[1754949635814,0.56378192,118800.0,118790.0,0.92771675]
[1754949636113,1.0204972,118800.0,118790.0,0.92771675]
[1754949636307,0.56378192,118800.0,118790.0,0.92771675]
[1754949636706,1.0204972,118800.0,118790.0,0.92771675]
[1754949639014,0.6596972,118800.0,118790.0,0.92771675]
[1754949639516,1.0204972,118800.0,118790.0,0.92771675]
[1754949639715,0.6596972,118800.0,118790.0,0.92771675]
[1754949639916,1.0204972,118800.0,118790.0,0.92771675]
[1754949641917,0.6596972,118800.0,118790.0,0.92771675]
[1754949642120,0.16531302,118800.0,118790.0,0.92771675]
[1754949642517,0.20298302,118800.0,118790.0,0.92771675]
[1754949644019,0.11881542,118800.0,118790.0,0.92771675]
[1754949644821,0.00156542,118800.0,118790.0,1.28851675]
[1754949646519,0.10829272,118800.0,118790.0,1.28851675]
[1754949646914,0.02412542,118800.0,118790.0,1.28851675]
[1754949647116,0.10829272,118800.0,118790.0,1.28851675]
[1754949647417,0.00156542,118800.0,118790.0,1.28851675]
[1754949647620,0.0001,118800.0,118790.0,1.28851675]
[1754949651627,0.0001,118800.0,118790.0,1.74523203]
[1754949652624,0.0001,118800.0,118790.0,1.82946431]
[1754949653528,0.0001,118800.0,118790.0,1.67819879]
[1754949657637,0.0001,118800.0,118790.0,1.28851675]
[1754949657837,0.0001,118800.0,118790.0,1.67819879]
[1754949658732,0.0001,118800.0,118790.0,1.28851675]
[1754949658934,0.0001,118800.0,118790.0,1.67819879]
[1754949660539,0.0001,118800.0,118790.0,1.84655879]
[1754949661431,0.0001,118800.0,118790.0,1.45687675]
[1754949661631,0.0001,118800.0,118790.0,1.84655879]
[1754949661839,0.0001,118800.0,118790.0,1.45687675]
[1754949662039,0.0001,118800.0,118790.0,1.84655879]
[1754949663635,0.0001,118800.0,118790.0,1.28851675]
[1754949663839,0.12119,118800.0,118790.0,1.28851675]
[1754949664140,0.59503954,118800.0,118790.0,0.89730635]
[1754949664340,1.39552158,118800.0,118790.0,0.81313175]
[1754949664646,1.39552158,118800.0,118790.0,0.01817175]
[1754949664942,0.0841816,118780.0,118770.0,1.52511657]
[1754949665143,0.59495364,118780.0,118770.0,2.23584857]
[1754949665443,0.59495364,118780.0,118770.0,1.43363417]
[1754949665634,0.95575364,118780.0,118770.0,0.81207307]
[1754949665835,0.95575364,118780.0,118770.0,0.79492]
[1754949665836,1.00575364,118780.0,118770.0,0.79492]
[1754949666036,0.0841958,118760.0,118750.0,0.01685036]
[1754949666236,0.08421,118740.0,118730.0,1.4027809]
[1754949666436,0.95578204,118740.0,118730.0,1.95876]
[1754949666640,0.0842171,118730.0,118720.0,0.25769835]
[1754949666948,0.95578914,118730.0,118720.0,0.89780175]
[1754949667148,0.95588914,118730.0,118720.0,0.89790175]
[1754949667947,1.02432279,118730.0,118720.0,0.01875755]
[1754949668242,0.63464075,118730.0,118720.0,0.01875755]
[1754949668447,1.58246083,118730.0,118720.0,0.01875755]
[1754949668636,1.26069316,118730.0,118720.0,0.0001]
[1754949668844,0.3369736,118700.0,118690.0,0.0842455]
[1754949669048,1.27646001,118700.0,118690.0,0.9120855]
[1754949669946,0.91566001,118700.0,118690.0,0.9120855]
[1754949670141,0.91566001,118700.0,118690.0,0.9121855]
[1754949670142,1.27656001,118700.0,118690.0,0.9121855]
[1754949670343,1.27656001,118700.0,118690.0,0.9151855]
[1754949670540,0.91576001,118700.0,118690.0,0.9151855]
[1754949670749,1.27656001,118700.0,118690.0,0.9151855]
[1754949670953,1.27656001,118700.0,118690.0,0.8823055]
[1754949671145,1.27656001,118700.0,118690.0,0.8843055]
[1754949671345,0.7347181,118700.0,118690.0,0.8813055]
[1754949671653,1.19231451,118700.0,118690.0,0.9151855]
[1754949671949,1.10806901,118700.0,118690.0,0.9658055]
[1754949672145,0.5662284,118700.0,118690.0,0.9969955]
[1754949672454,0.5662284,118700.0,118690.0,0.0853455]
[1754949672646,0.66302481,118700.0,118690.0,0.9878055]
[1754949672839,0.66402481,118700.0,118690.0,0.9878055]
[1754949673253,0.66402481,118700.0,118690.0,0.9971955]
[1754949673647,0.2064284,118700.0,118690.0,0.9971955]
[1754949673844,0.2064284,118700.0,118690.0,0.9973155]
[1754949674040,0.12219,118700.0,118690.0,0.9973155]
[1754949674754,0.58078641,118700.0,118690.0,0.9963155]
[1754949674952,0.12319,118700.0,118690.0,0.9963155]
[1754949675252,0.01178,118700.0,118690.0,1.3571155]
[1754949675446,0.0021,118700.0,118690.0,1.3571155]
[1754949675646,0.0021,118700.0,118690.0,1.81471191]
[1754949675848,0.0021,118700.0,118690.0,1.79904191]
[1754949676553,0.0021,118700.0,118690.0,1.3414455]
[1754949677761,0.0021,118700.0,118690.0,1.79904191]
[1754949678654,0.02457,118720.0,118710.0,0.0842313]
[1754949678847,0.02457,118720.0,118710.0,1.3184013]
[1754949679044,0.1087942,118720.0,118710.0,0.9576013]
[1754949679446,0.61994061,118720.0,118710.0,0.9576013]
[1754949679956,0.98374061,118720.0,118710.0,0.9576013]
[1754949680159,0.98384061,118720.0,118710.0,0.9577013]
[1754949680360,0.98384061,118720.0,118710.0,0.9438013]
[1754949680655,0.98384061,118720.0,118710.0,0.8796913]
[1754949680856,0.98384061,118720.0,118710.0,0.79546]
[1754949681053,0.98584061,118720.0,118710.0,0.79546]
[1754949681250,0.98584061,118720.0,118710.0,0.7955]
[1754949681751,1.20431261,118720.0,118710.0,0.0001]
[1754949683760,1.34421261,118720.0,118710.0,0.0001]
[1754949684854,1.29421261,118720.0,118710.0,0.0001]
[1754949686656,0.0842384,118700.0,118690.0,0.79732]
[1754949686870,1.34155481,118700.0,118690.0,0.79732]
[1754949687257,1.34155481,118700.0,118690.0,0.8815655]